fUST/lending_fUST_20240906
["ID","MTS","AMOUNT","RATE_DAILY","PERIOD"]
[337332598,1725609038151,-300.0,0.00019939,2]
[337332599,1725609038160,-220.80596463,0.0001994,2]
[337332600,1725609038170,-233.20572346,0.0001994,2]
[337332601,1725609038180,-500.0,0.0001994,2]
[337332602,1725609038189,-509.21929328,0.0001994,2]
[337332603,1725609038199,-500.0,0.0001994,2]
[337332604,1725609038208,-500.0,0.0001994,2]
[337332605,1725609038217,-321.04892217,0.0001994,2]
[337332606,1725609038227,-500.0,0.0001994,2]
[337332607,1725609038237,-500.0,0.0001994,2]
[337332608,1725609038246,-500.0,0.0001994,2]
[337332609,1725609038255,-500.0,0.0001994,2]
[337332610,1725609038266,-500.0,0.0001994,2]
[337332611,1725609038276,-500.0,0.0001994,2]
[337332612,1725609038285,-500.0,0.0001994,2]
[337332613,1725609038296,-500.0,0.0001994,2]
[337332614,1725609038305,-500.0,0.0001994,2]
[337332617,1725609038316,-500.0,0.0001994,2]
[337332619,1725609038326,-500.0,0.0001994,2]
[337332621,1725609038335,-164.94498241,0.0001994,2]
[337332622,1725609038345,-500.0,0.0001994,2]
[337332623,1725609038354,-500.0,0.0001994,2]
[337332624,1725609038363,-500.0,0.0001994,2]
[337332625,1725609038372,-500.0,0.0001994,2]
[337332626,1725609038381,-500.0,0.0001994,2]
[337332627,1725609038391,-500.0,0.0001994,2]
[337332628,1725609038400,-500.0,0.0001994,2]
[337332629,1725609038409,-500.0,0.0001994,2]
[337332630,1725609038419,-500.0,0.0001994,2]
[337332631,1725609038428,-500.0,0.0001994,2]
[337332632,1725609038437,-500.0,0.0001994,2]
[337332633,1725609038446,-500.0,0.0001994,2]
[337332634,1725609038455,-500.0,0.0001994,2]
[337332635,1725609038464,-500.0,0.0001994,2]
[337332636,1725609038474,-500.0,0.0001994,2]
[337332637,1725609038483,-500.0,0.0001994,2]
[337332638,1725609038493,-500.0,0.0001994,2]
[337332639,1725609038502,-500.0,0.0001994,2]
[337332640,1725609038511,-500.0,0.0001994,2]
[337332641,1725609038521,-500.0,0.0001994,2]
[337332642,1725609038530,-500.0,0.0001994,2]
[337332643,1725609038539,-500.0,0.0001994,2]
[337332644,1725609038548,-500.0,0.0001994,2]
[337332645,1725609038558,-323.77594065,0.0001994,2]
[337332646,1725609038567,-500.0,0.0001994,2]
[337332647,1725609038576,-500.0,0.0001994,2]
[337332648,1725609038586,-500.0,0.0001994,2]
[337332649,1725609038595,-500.0,0.0001994,2]
[337332650,1725609038604,-500.0,0.0001994,2]
[337332651,1725609038613,-500.0,0.0001994,2]
[337332652,1725609038623,-500.0,0.0001994,2]
[337332653,1725609038633,-500.0,0.0001994,2]
[337332654,1725609038642,-500.0,0.0001994,2]
[337332655,1725609038651,-500.0,0.0001994,2]
[337332656,1725609038661,-500.0,0.0001994,2]
[337332657,1725609038670,-374.51910591,0.0001994,2]
[337332658,1725609038679,-499.99999999,0.0001994,2]
[337332659,1725609038689,-500.0,0.0001994,2]
[337332660,1725609038698,-2104.94,0.0001994,2]
[337332661,1725609038707,-592.08,0.0001994,2]
[337332662,1725609038716,-592.08,0.0001994,2]
[337332663,1725609038726,-592.08,0.0001994,2]
[337332664,1725609038735,-592.08,0.0001994,2]
[337332665,1725609038746,-592.08,0.0001994,2]
[337332666,1725609038754,-592.08,0.0001994,2]
[337332667,1725609038763,-592.08,0.0001994,2]
[337332668,1725609038772,-592.08,0.0001994,2]
[337332669,1725609038782,-592.08,0.0001994,2]
[337332670,1725609038792,-592.08,0.0001994,2]
[337332671,1725609038801,-592.08,0.0001994,2]
[337332672,1725609038810,-592.08,0.0001994,2]
[337332673,1725609038819,-592.08,0.0001994,2]
[337332674,1725609038829,-592.08,0.0001994,2]
[337332675,1725609038838,-592.08,0.0001994,2]
[337332676,1725609038848,-592.08,0.0001994,2]
[337332677,1725609038858,-592.08,0.0001994,2]
[337332678,1725609038867,-592.08,0.0001994,2]
[337332679,1725609038877,-592.08,0.0001994,2]
[337332680,1725609038886,-592.08,0.0001994,2]
[337332681,1725609038895,-592.08,0.0001994,2]
[337332682,1725609038905,-592.08,0.0001994,2]
[337332683,1725609038916,-592.08,0.0001994,2]
[337332684,1725609038925,-592.12996673,0.0001994,2]
[337332685,1725609038935,-55647.17992454,0.00019941,3]
[337332686,1725609038944,-237507.62685,0.00019941,2]
[337332687,1725609038954,-604123.896923,0.00019941,2]
[337332688,1725609038964,-500.0,0.00019941,2]
[337332689,1725609038973,-500.0,0.00019941,2]
[337332690,1725609038983,-500.0,0.00019941,2]
[337332691,1725609038993,-500.0,0.00019941,2]
[337332692,1725609039002,-500.0,0.00019941,2]
[337332693,1725609039106,-500.0,0.00019941,2]
[337332694,1725609039130,-500.0,0.00019941,2]
[337332695,1725609039140,-500.0,0.00019941,2]
[337332696,1725609039150,-500.0,0.00019941,2]
[337332697,1725609039158,-500.0,0.00019941,2]
[337332698,1725609039168,-500.0,0.00019941,2]
[337332699,1725609039177,-500.0,0.00019941,2]
[337332700,1725609039187,-500.0,0.00019941,2]
[337332701,1725609039196,-500.0,0.00019941,2]
[337332702,1725609039206,-500.0,0.00019941,2]
[337332703,1725609039215,-500.0,0.00019941,2]
[337332704,1725609039224,-500.0,0.00019941,2]
[337332705,1725609039234,-500.0,0.00019941,2]
[337332706,1725609039243,-500.0,0.00019941,2]
[337332707,1725609039252,-500.0,0.00019941,2]
[337332708,1725609039262,-500.0,0.00019941,2]
[337332709,1725609039271,-602.16,0.00019941,2]
[337332710,1725609039281,-500.0,0.00019941,2]
[337332711,1725609039291,-500.0,0.00019941,2]
[337332712,1725609039300,-500.0,0.00019941,2]
[337332713,1725609039313,-500.0,0.00019941,2]
[337332714,1725609039331,-500.0,0.00019941,2]
[337332715,1725609039340,-500.0,0.00019941,2]
[337332716,1725609039349,-245.65856709,0.00019941,2]
[337332717,1725609039359,-500.0,0.00019941,2]
[337332718,1725609039368,-500.0,0.00019941,2]
[337332719,1725609039377,-500.0,0.00019941,2]
[337332720,1725609039387,-500.0,0.00019941,2]
[337332721,1725609039397,-500.0,0.00019941,2]
[337332722,1725609039406,-500.0,0.00019941,2]
[337332723,1725609039416,-500.0,0.00019941,2]
[337332724,1725609039425,-500.0,0.00019941,2]
[337332725,1725609039434,-500.0,0.00019941,2]
[337332726,1725609039444,-500.0,0.00019941,2]
[337332727,1725609039453,-500.0,0.00019941,2]
[337332728,1725609039462,-556.38908231,0.00019941,2]
[337332729,1725609039471,-500.0,0.00019941,2]
[337332730,1725609039480,-500.0,0.00019941,2]
[337332731,1725609039489,-1248.82,0.00019941,2]
[337332732,1725609039498,-500.0,0.00019941,2]
[337332733,1725609039508,-500.0,0.00019941,2]
[337332734,1725609039518,-500.0,0.00019941,2]
[337332735,1725609039527,-500.0,0.00019941,2]
[337332736,1725609039537,-500.0,0.00019941,2]
[337332737,1725609039553,-500.0,0.00019941,2]
[337332738,1725609039562,-500.0,0.00019941,2]
[337332739,1725609039572,-1609.37,0.00019941,2]
[337332740,1725609039581,-1025.87,0.00019941,2]
[337332741,1725609039590,-501.21870796,0.00019941,2]
[337332742,1725609039599,-500.0,0.00019941,2]
[337332743,1725609039609,-500.0,0.00019941,2]
[337332744,1725609039620,-500.0,0.00019941,2]
[337332745,1725609039629,-5278.66,0.00019941,2]
[337332746,1725609039638,-601.71,0.00019941,2]
[337332747,1725609039648,-601.71,0.00019941,2]
[337332748,1725609039657,-601.71,0.00019941,2]
[337332749,1725609039667,-601.71,0.00019941,2]
[337332750,1725609039675,-601.71,0.00019941,2]
[337332751,1725609039684,-601.71,0.00019941,2]
[337332752,1725609039694,-601.71,0.00019941,2]
[337332753,1725609039703,-2726.58,0.00019941,2]
[337332754,1725609039712,-569.92192486,0.00019941,2]
[337332755,1725609039721,-1081.19,0.00019941,2]
[337332756,1725609039730,-500.0,0.00019941,2]
[337332757,1725609039739,-2214.63,0.00019941,2]
[337332758,1725609039748,-500.0,0.00019941,2]
[337332759,1725609039758,-200.0,0.00019941,2]
[337332761,1725609039767,-500.0,0.00019941,2]
[337332763,1725609039777,-500.0,0.00019941,2]
[337332764,1725609039786,-500.0,0.00019941,2]
[337332765,1725609039797,-500.0,0.00019941,2]
[337332766,1725609039806,-515.97,0.00019941,2]
[337332768,1725609039815,-500.0,0.00019941,2]
[337332769,1725609039823,-673.91,0.00019941,2]
[337332770,1725609039845,-1916.64,0.00019941,2]
[337332771,1725609039861,-500.0,0.00019941,2]
[337332772,1725609039881,-526.84464015,0.00019941,2]
[337332773,1725609039903,-7567.18,0.00019941,2]
[337332774,1725609039924,-500.0,0.00019941,2]
[337332775,1725609039941,-2138.68,0.00019941,2]
[337332776,1725609039960,-500.0,0.00019941,2]
[337332777,1725609039975,-500.0,0.00019941,2]
[337332778,1725609039991,-500.0,0.00019941,2]
[337332780,1725609040029,-500.0,0.00019941,2]
[337332781,1725609040049,-339.49052472,0.00019941,2]
[337332782,1725609040062,-2163.74,0.00019941,2]
[337332783,1725609040084,-500.0,0.00019941,2]
[337332784,1725609040103,-500.0,0.00019941,2]
[337332785,1725609040125,-500.0,0.00019941,2]
[337332786,1725609040139,-500.0,0.00019941,2]
[337332787,1725609040154,-500.0,0.00019941,2]
[337332788,1725609040174,-2384.15,0.00019941,2]
[337332789,1725609040198,-500.0,0.00019941,2]
[337332790,1725609040216,-1332.97,0.00019941,2]
[337332791,1725609040233,-500.0,0.00019941,2]
[337332792,1725609040250,-575.1835918,0.00019941,2]
[337332793,1725609040268,-500.0,0.00019941,2]
[337332794,1725609040284,-1396.81,0.00019941,2]
[337332795,1725609040301,-497.45234945,0.00019941,2]
[337332796,1725609040320,-1867.04,0.00019941,2]
[337332797,1725609040335,-500.0,0.00019941,2]
[337332798,1725609040350,-500.0,0.00019941,2]
[337332799,1725609040363,-500.0,0.00019941,2]
[337332800,1725609040379,-500.0,0.00019941,2]
[337332801,1725609040393,-500.0,0.00019941,2]
[337332802,1725609040409,-3381.51,0.00019941,2]
[337332803,1725609040423,-500.0,0.00019941,2]
[337332804,1725609040437,-79169.2089499,0.00019942,2]
[337332805,1725609040452,-601.71,0.00019948,2]
[337332806,1725609040466,-601.71,0.0001995,2]
[337332807,1725609040480,-601.71,0.0001995,2]
[337332808,1725609040495,-500.0,0.00019951,2]
[337332809,1725609040509,-496.0956737,0.00019951,2]
[337332810,1725609040523,-500.0,0.00019951,2]
[337332811,1725609040538,-500.0,0.00019951,2]
[337332812,1725609040557,-500.0,0.00019951,2]
[337332813,1725609040579,-500.0,0.00019951,2]
[337332814,1725609040598,-2559.54,0.00019951,2]
[337332815,1725609040615,-2376.73,0.00019951,2]
[337332816,1725609040632,-1152.74,0.00019951,2]
[337332817,1725609040648,-648.77330944,0.00019951,2]
[337332818,1725609040664,-500.0,0.00019951,2]
[337332819,1725609040680,-513.66884988,0.00019951,2]
[337332820,1725609040695,-910.85,0.00019951,2]
[337332821,1725609040710,-500.0,0.00019951,2]
[337332822,1725609040726,-500.0,0.00019951,2]
[337332823,1725609040741,-500.0,0.00019951,2]
[337332824,1725609040755,-500.0,0.00019951,2]
[337332825,1725609040770,-739.17,0.00019951,2]
[337332826,1725609040786,-500.0,0.00019951,2]
[337332827,1725609040804,-500.0,0.00019951,2]
[337332828,1725609040819,-500.0,0.00019951,2]
[337332829,1725609040834,-500.0,0.00019951,2]
[337332830,1725609040849,-500.0,0.00019951,2]
[337332831,1725609040864,-500.0,0.00019951,2]
[337332832,1725609040880,-500.0,0.00019951,2]
[337332833,1725609040895,-500.0,0.00019951,2]
[337332834,1725609040910,-500.0,0.00019951,2]
[337332835,1725609040924,-500.0,0.00019951,2]
[337332836,1725609040939,-500.0,0.00019951,2]
[337332837,1725609040961,-500.0,0.00019951,2]
[337332838,1725609040979,-500.0,0.00019951,2]
[337332839,1725609040996,-2366.75,0.00019951,2]
[337332840,1725609041012,-2472.65,0.00019951,2]
[337332841,1725609041028,-500.0,0.00019951,2]
[337332842,1725609041047,-613.65,0.00019951,2]
[337332843,1725609041064,-2669.67,0.00019951,2]
[337332844,1725609041082,-500.0,0.00019951,2]
[337332845,1725609041261,-1520.89,0.00019951,2]
[337332846,1725609041286,-1725.15,0.00019951,2]
[337332847,1725609041308,-500.0,0.00019951,2]
[337332848,1725609041321,-1682.65,0.00019951,2]
[337332849,1725609041331,-1682.65,0.00019951,2]
[337332850,1725609041342,-1682.65,0.00019951,2]
[337332851,1725609041352,-1682.65,0.00019951,2]
[337332852,1725609041362,-1682.65,0.00019951,2]
[337332853,1725609041372,-1682.65,0.00019951,2]
[337332854,1725609041382,-1682.65,0.00019951,2]
[337332855,1725609041391,-1682.65,0.00019951,2]
[337332856,1725609041402,-1682.65,0.00019951,2]
[337332857,1725609041411,-1682.65,0.00019951,2]
[337332858,1725609041422,-1682.65,0.00019951,2]
[337332859,1725609041433,-1608.1,0.00019951,2]
[337332860,1725609041442,-545.06,0.00019951,2]
[337332861,1725609041453,-2106.06,0.00019951,2]
[337332862,1725609041463,-500.0,0.00019951,2]
[337332863,1725609041473,-500.0,0.00019951,2]
[337332864,1725609041483,-1660.42,0.00019951,2]
[337332865,1725609041493,-23727.07,0.00019951,2]
[337332866,1725609041503,-1433.17,0.00019951,2]
[337332867,1725609041512,-3359.97,0.00019951,2]
[337332868,1725609041523,-500.0,0.00019951,2]
[337332869,1725609041533,-536.6517579,0.00019951,2]
[337332870,1725609041548,-500.0,0.00019951,2]
[337332871,1725609041558,-502.99532719,0.00019951,2]
[337332872,1725609041568,-2979.47,0.00019951,2]
[337332873,1725609041578,-3384.66,0.00019951,2]
[337332874,1725609041587,-522.13,0.00019951,2]
[337332875,1725609041597,-1441.83,0.00019951,2]
[337332876,1725609041607,-500.0,0.00019951,2]
[337332877,1725609041617,-500.0,0.00019951,2]
[337332878,1725609041626,-2714.43,0.00019951,2]
[337332879,1725609041636,-500.0,0.00019951,2]
[337332880,1725609041645,-500.0,0.00019951,2]
[337332881,1725609041655,-2153.93,0.00019951,2]
[337332882,1725609041665,-500.0,0.00019951,2]
[337332883,1725609041675,-546.03,0.00019951,2]
[337332884,1725609041684,-1318.69,0.00019951,2]
[337332885,1725609041694,-3625.89,0.00019951,2]
[337332886,1725609041703,-500.0,0.00019951,2]
[337332887,1725609041713,-3860.31,0.00019951,2]
[337332888,1725609041723,-1393.48,0.00019951,2]
[337332889,1725609041733,-1393.48,0.00019951,2]
[337332890,1725609041743,-1393.48,0.00019951,2]
[337332891,1725609041752,-1393.48,0.00019951,2]
[337332892,1725609041762,-1393.48,0.00019951,2]
[337332893,1725609041771,-1393.48,0.00019951,2]
[337332894,1725609041781,-1393.48,0.00019951,2]
[337332895,1725609041793,-1393.48,0.00019951,2]
[337332896,1725609041809,-1393.48,0.00019951,2]
[337332897,1725609041827,-1393.48,0.00019951,2]
[337332898,1725609041837,-1393.48,0.00019951,2]
[337332899,1725609041847,-500.0,0.00019951,2]
[337332900,1725609041857,-500.0,0.00019951,2]
[337332901,1725609041867,-500.0,0.00019951,2]
[337332902,1725609041877,-500.0,0.00019951,2]
[337332903,1725609041886,-500.0,0.00019951,2]
[337332904,1725609041897,-500.0,0.00019951,2]
[337332905,1725609041907,-500.0,0.00019951,2]
[337332906,1725609041917,-500.0,0.00019951,2]
[337332907,1725609041928,-1834.01,0.00019951,2]
[337332908,1725609041940,-209.67090129,0.00019951,2]
[337332909,1725609041951,-500.0,0.00019951,2]
[337332910,1725609041962,-2029.8,0.00019951,2]
[337332911,1725609041972,-1153.86,0.00019951,2]
[337332912,1725609041982,-3466.27,0.00019951,2]
[337332913,1725609041992,-524.49,0.00019951,2]
[337332914,1725609042002,-500.0,0.00019951,2]
[337332915,1725609042012,-500.0,0.00019951,2]
[337332916,1725609042022,-1327.05,0.00019951,2]
[337332917,1725609042032,-784.27,0.00019951,2]
[337332918,1725609042043,-2610.45,0.00019951,2]
[337332919,1725609042053,-32066.28496413,0.00019952,15]
[337332920,1725609042063,-1682.65,0.00019952,2]
[337332921,1725609042073,-1682.65,0.00019952,2]
[337332922,1725609042082,-1682.65,0.00019952,2]
[337332923,1725609042093,-1682.65,0.00019952,2]
[337332924,1725609042103,-1682.65,0.00019952,2]
[337332925,1725609042113,-1682.65,0.00019952,2]
[337332926,1725609042123,-601.71,0.00019952,2]
[337332927,1725609042133,-1393.48,0.00019952,2]
[337332928,1725609042144,-1393.48,0.00019952,2]
[337332929,1725609042154,-1393.48,0.00019952,2]
[337332930,1725609042164,-1393.48,0.00019952,2]
[337332931,1725609042174,-1393.48,0.00019952,2]
[337332932,1725609042184,-1393.48,0.00019952,2]
[337332933,1725609042194,-601.71,0.00019957,2]
[337332934,1725609042204,-500.0,0.00019958,2]
[337332935,1725609042214,-500.0,0.00019958,2]
[337332936,1725609042224,-500.0,0.00019958,2]
[337332937,1725609042233,-1104.78,0.00019958,2]
[337332938,1725609042244,-500.0,0.00019958,2]
[337332939,1725609042255,-500.0,0.00019958,2]
[337332940,1725609042265,-500.0,0.00019958,2]
[337332941,1725609042275,-460.07674919,0.00019958,2]
[337332942,1725609042285,-3043.2,0.00019958,2]
[337332943,1725609042297,-654.5,0.00019958,2]
[337332944,1725609042307,-500.0,0.00019958,2]
[337332945,1725609042317,-500.0,0.00019958,2]
[337332946,1725609042328,-2620.2,0.00019958,2]
[337332947,1725609042338,-500.0,0.00019958,2]
[337332948,1725609042347,-500.0,0.00019958,2]
[337332949,1725609042357,-1698.59,0.00019958,2]
[337332950,1725609042366,-2084.64,0.00019958,2]
[337332951,1725609042376,-1038.27,0.00019958,2]
[337332952,1725609042385,-3706.21,0.00019958,2]
[337332953,1725609042396,-3707.68,0.00019958,2]
[337332954,1725609042407,-993.18,0.00019958,2]
[337332955,1725609042416,-500.0,0.00019958,2]
[337332956,1725609042429,-3539.11,0.00019958,2]
[337332957,1725609042439,-179.86031609,0.00019958,2]
[337332958,1725609042449,-1682.65,0.00019958,2]
[337332959,1725609042460,-677.69,0.00019958,2]
[337332960,1725609042469,-1682.65,0.00019958,2]
[337332961,1725609042479,-1682.65,0.00019958,2]
[337332963,1725609042489,-1682.65,0.00019958,2]
[337332965,1725609042499,-1682.65,0.00019958,2]
[337332967,1725609042509,-1682.65,0.00019958,2]
[337332969,1725609042519,-1682.68611902,0.00019958,2]
[337332971,1725609042529,-500.0,0.00019958,2]
[337332973,1725609042539,-3088.96,0.00019958,2]
[337332974,1725609042550,-1148.66,0.00019958,2]
[337332975,1725609042560,-500.0,0.00019958,2]
[337332976,1725609042570,-500.0,0.00019958,2]
[337332977,1725609042580,-501.98512959,0.00019958,2]
[337332978,1725609042589,-650.34,0.00019958,2]
[337332979,1725609042599,-47591.09,0.00019958,2]
[337332980,1725609042609,-500.0,0.00019958,2]
[337332981,1725609042620,-500.0,0.00019958,2]
[337332982,1725609042630,-720.39,0.00019958,2]
[337332984,1725609042640,-500.0,0.00019958,2]
[337332987,1725609042650,-601.71,0.00019958,2]
[337332989,1725609042660,-601.71,0.00019958,2]
[337332991,1725609042670,-601.71,0.00019958,2]
[337332994,1725609042679,-601.71,0.00019958,2]
[337332995,1725609042689,-500.0,0.00019958,2]
[337332997,1725609042699,-500.0,0.00019958,2]
[337332998,1725609042708,-977.89,0.00019958,2]
[337332999,1725609042718,-663.62,0.00019958,2]
[337333000,1725609042727,-736.66,0.00019958,2]
[337333001,1725609042738,-2669.91,0.00019958,2]
[337333002,1725609042747,-1000.0,0.00019958,2]
[337333003,1725609042757,-3261.27,0.00019958,2]
[337333004,1725609042767,-556.96049972,0.00019958,2]
[337333005,1725609042776,-2916.84,0.00019958,2]
[337333006,1725609042786,-500.0,0.00019958,2]
[337333007,1725609042797,-1393.48,0.00019958,2]
[337333008,1725609042806,-1393.48,0.00019958,2]
[337333009,1725609042816,-1393.48,0.00019958,2]
[337333010,1725609042826,-1393.48,0.00019958,2]
[337333011,1725609042835,-1393.48,0.00019958,2]
[337333012,1725609042845,-1393.48,0.00019958,2]
[337333013,1725609042855,-1393.5640839,0.00019958,2]
[337333014,1725609042866,-500.0,0.00019958,2]
[337333015,1725609042881,-3005.03,0.00019958,2]
[337333016,1725609042891,-1905.12,0.00019958,2]
[337333017,1725609042900,-545.34102415,0.00019958,2]
[337333018,1725609042910,-500.0,0.00019958,2]
[337333019,1725609042920,-500.0,0.00019958,2]
[337333020,1725609042931,-90043.90824973,0.00019959,2]
[337333021,1725609042940,-601.71,0.00019961,2]
[337333022,1725609042950,-1558.22,0.00019962,2]
[337333023,1725609042960,-3152.56,0.00019962,2]
[337333024,1725609042970,-1502.9,0.00019962,2]
[337333025,1725609042980,-503.52492454,0.00019962,2]
[337333026,1725609042990,-1812.1,0.00019962,2]
[337333027,1725609043000,-8738.76,0.00019962,2]
[337333028,1725609043010,-2345.16,0.00019962,2]
[337333029,1725609043020,-2122.89,0.00019962,2]
[337333030,1725609043029,-3548.16,0.00019962,2]
[337333031,1725609043039,-33143.18,0.00019962,2]
[337333032,1725609043052,-500.0,0.00019962,2]
[337333033,1725609043063,-1107.99,0.00019962,2]
[337333034,1725609043074,-601.71,0.00019962,2]
[337333036,1725609043084,-601.71,0.00019962,2]
[337333037,1725609043094,-601.71,0.00019962,2]
[337333038,1725609043103,-601.71,0.00019962,2]
[337333039,1725609043114,-500.0,0.00019962,2]
[337333041,1725609043124,-601.71,0.00019962,2]
[337333042,1725609043133,-601.71,0.00019962,2]
[337333043,1725609043143,-601.73436146,0.00019962,2]
[337333044,1725609043153,-1356.69,0.00019962,2]
[337333045,1725609043163,-500.0,0.00019962,2]
[337333046,1725609043172,-500.0,0.00019963,2]
[337333047,1725609043182,-363.44721898,0.00019963,2]
[337333048,1725609043192,-500.0,0.00019963,2]
[337333049,1725609043201,-507.20957172,0.00019963,2]
[337333050,1725609043210,-500.0,0.00019963,2]
[337333051,1725609043220,-391.54057447,0.00019963,2]
[337333052,1725609043230,-500.0,0.00019963,2]
[337333053,1725609043240,-500.0,0.00019963,2]
[337333054,1725609043250,-500.0,0.00019963,2]
[337333055,1725609043260,-500.0,0.00019963,2]
[337333056,1725609043269,-500.0,0.00019963,2]
[337333057,1725609043279,-500.0,0.00019963,2]
[337333058,1725609043289,-500.0,0.00019963,2]
[337333059,1725609043301,-500.0,0.00019963,2]
[337333060,1725609043311,-500.0,0.00019963,2]
[337333061,1725609043323,-452.53696434,0.00019963,2]
[337333062,1725609043332,-500.0,0.00019963,2]
[337333063,1725609043342,-500.0,0.00019963,2]
[337333064,1725609043486,-199.66020972,0.00019963,2]
[337333065,1725609043507,-500.0,0.00019963,2]
[337333066,1725609043517,-500.0,0.00019963,2]
[337333067,1725609043527,-500.0,0.00019963,2]
[337333068,1725609043536,-673.97,0.00019963,2]
[337333069,1725609043546,-645.33708731,0.00019963,2]
[337333070,1725609043556,-527.38018552,0.00019963,2]
[337333071,1725609043565,-500.0,0.00019963,2]
[337333072,1725609043574,-500.0,0.00019963,2]
[337333073,1725609043584,-500.0,0.00019963,2]
[337333074,1725609043593,-526.35037879,0.00019963,2]
[337333075,1725609043602,-500.0,0.00019963,2]
[337333076,1725609043611,-500.0,0.00019963,2]
[337333077,1725609043620,-500.0,0.00019963,2]
[337333078,1725609043629,-1012.3,0.00019963,2]
[337333079,1725609043639,-500.0,0.00019963,2]
[337333080,1725609043648,-500.0,0.00019963,2]
[337333081,1725609043657,-500.0,0.00019963,2]
[337333082,1725609043666,-500.0,0.00019963,2]
[337333083,1725609043675,-500.0,0.00019963,2]
[337333084,1725609043684,-500.0,0.00019963,2]
[337333085,1725609043693,-500.0,0.00019963,2]
[337333086,1725609043702,-500.0,0.00019963,2]
[337333087,1725609043711,-500.0,0.00019963,2]
[337333088,1725609043720,-500.0,0.00019963,2]
[337333089,1725609043729,-500.0,0.00019963,2]
[337333090,1725609043739,-500.0,0.00019963,2]
[337333091,1725609043748,-500.0,0.00019963,2]
[337333092,1725609043757,-500.0,0.00019963,2]
[337333093,1725609043766,-500.0,0.00019963,2]
[337333094,1725609043776,-549.14,0.00019963,2]
[337333095,1725609043786,-500.0,0.00019963,2]
[337333096,1725609043797,-500.0,0.00019963,2]
[337333097,1725609043806,-500.0,0.00019963,2]
[337333098,1725609043816,-500.0,0.00019963,2]
[337333099,1725609043826,-500.0,0.00019963,2]
[337333100,1725609043835,-500.0,0.00019963,2]
[337333101,1725609043844,-500.0,0.00019963,2]
[337333102,1725609043853,-500.0,0.00019963,2]
[337333103,1725609043863,-2706.59,0.00019963,2]
[337333104,1725609043872,-500.0,0.00019963,2]
[337333105,1725609043881,-500.0,0.00019963,2]
[337333106,1725609043891,-500.0,0.00019963,2]
[337333107,1725609043900,-500.0,0.00019963,2]
[337333108,1725609043910,-514.03,0.00019963,2]
[337333109,1725609043919,-500.0,0.00019963,2]
[337333110,1725609043929,-500.0,0.00019963,2]
[337333111,1725609043938,-500.0,0.00019963,2]
[337333112,1725609043948,-500.0,0.00019963,2]
[337333113,1725609043958,-500.0,0.00019963,2]
[337333114,1725609043967,-500.0,0.00019963,2]
[337333115,1725609043977,-500.0,0.00019963,2]
[337333116,1725609043986,-500.0,0.00019963,2]
[337333117,1725609043995,-500.0,0.00019963,2]
[337333118,1725609044029,-500.0,0.00019963,2]
[337333119,1725609044038,-500.0,0.00019963,2]
[337333120,1725609044053,-1483.39,0.00019963,2]
[337333121,1725609044062,-609.60466225,0.00019963,2]